Cogmind - Beta 17.1 @@@ ROGUE MODE // 2026.08.31 @ 09:49:06 Player: eph7ra Result: Destroyed by G-47 Trooper with Particle Gun Performance ------------- Evolutions (2) 1000 Regions Visited (3) 600 Robots Destroyed (49) 245 Value Destroyed (1357) 1357 Prototype IDs (0) 0 Alien Tech Used (0) 0 Bonus (0) 0 TOTAL SCORE: 3202 Bonus ------- None Cogmind --------- Core Integrity 0/550 Matter 198/300 Energy 100/100 System Corruption 0% Temperature Warm (101) Movement Core (400) Ox7 Location -8/Materials Parts ------- > --- POWER (1) -------- (None) > --- PROPULSION (2) --- (None) > --- UTILITY (5) ------ Large Storage Unit Signal Interpreter ECM Suite > --- WEAPON (3) ------- Mini Grenade Launcher > --- INVENTORY (15) --- Light Deuterium Engine Light Treads Aluminum Leg Flight Unit Flight Unit Improved Cesium-ion Thruster Improved Cesium-ion Thruster Faulty Improved Cesium-ion Thruster Improved Sensor Array Targeting Computer ECM Suite Hacking Suite Peak State ------------ > --- POWER ------------ Light Nuclear Core > --- PROPULSION ------- Light Treads Light Treads > --- UTILITY ---------- Heat Sink Large Storage Unit Improved Sensor Array Signal Interpreter ECM Suite > --- WEAPON ----------- Beam Rifle Particle Gun Improved Light Cannon > --- INVENTORY -------- Light Ion Engine Nuclear Core Aluminum Leg Wheel Wheel Wheel Flight Unit Flight Unit Improved Sensor Array Targeting Computer ECM Suite Hacking Suite Mini Grenade Launcher [Rating: 20] Favorites ----------- Power Ion Engine Engine Ion Engine Power Core Light Nuclear Core Propulsion Aluminum Leg Treads Light Treads Leg Aluminum Leg Wheel Wheel Utility Large Storage Unit Device Heat Sink Storage Large Storage Unit Processor Signal Interpreter Protection Light Armor Plating Weapon Light Assault Rifle Energy Gun Particle Gun Ballistic Gun Light Assault Rifle Ballistic Cannon Improved Light Cannon Launcher Mini Grenade Launcher Special Melee Weapon Datajack Build | -11 -10 -9 -8 ------- Run | Yrd Mat Mat Mat Slots Evolved 4 | . . 2 2 Power . | . . . . Propulsion . | . . . . Utility 3 | . . 2 1 Weapon 1 | . . . 1 Parts Attached 37 | 6 3 8 20 Power 7 | 1 . 1 5 Engine 3 | 1 . 1 1 Core 4 | . . . 4 Reactor . | . . . . Propulsion 9 | 2 . 2 5 Treads 2 | . . . 2 Leg 4 | 2 . 2 . Wheel 3 | . . . 3 Hover . | . . . . Flight . | . . . . Utility 10 | 1 2 3 4 Device 4 | . . 1 3 Storage 2 | 1 1 . . Processor 3 | . 1 1 1 Hackware . | . . . . Protection 1 | . . 1 . Artifact . | . . . . Weapon 11 | 2 1 2 6 Energy Gun 5 | . . 2 3 Energy Cannon . | . . . . Ballistic Gun 3 | 2 . . 1 Ballistic Cannon 1 | . 1 . . Launcher 1 | . . . 1 Special Weapon . | . . . . Impact Weapon . | . . . . Slashing Weapon . | . . . . Piercing Weapon . | . . . . Special Melee Weapon 1 | . . . 1 Unidentified Prototypes . | . . . . Parts Lost 27 | . . 6 21 Power 7 | . . 2 5 Propulsion 6 | . . 1 5 Utility 4 | . . 1 3 Weapon 10 | . . 2 8 Highest Loss Streak 10 | . . 3 10 To Critical Strikes . | . . . . Average Backups 9 | 4 9 9 10 Power . | . 1 . 1 Propulsion 4 | 2 4 4 5 Utility 2 | . 1 1 3 Weapon 1 | . 1 2 . Tool/Special . | . . . . Unused Backups 12 | . 1 . 11 Power 2 | . 1 . 1 Propulsion 6 | . . . 6 Utility 4 | . . . 4 Weapon . | . . . . Tool/Special . | . . . . Average Slot Usage (%) 90 | . 99 92 83 Engine 6 | . 13 10 . Core 3 | . . . 7 Treads 4 | . . . 9 Leg 13 | . 28 21 1 Wheel 2 | . . . 5 Device 9 | . . 6 15 Storage 10 | . 14 11 9 Processor 14 | . 13 20 12 Energy Gun 8 | . . 7 14 Ballistic Gun 9 | . 22 13 . Ballistic Cannon 3 | . 5 . 3 Peak Build Rating 20 | 6 10 11 20 Average Rating 12 | 4 9 10 15 On Entrance 6 | . 6 10 9 Avg Prop Armor Cover (%) . | . . . . Naked Turns . | . . . . Heaviest Build 39 | 12 30 31 39 Greatest Support 40 | 20 20 20 40 Greatest Overweight (x) 3 | 3 1 2 3 Average Overweight (x) . | . . 1 . Largest Inventory Capacity 15 | 8 15 15 15 Average Capacity 14 | 7 13 15 15 Most Carried 15 | 7 11 12 15 Average Carried 9 | 4 9 9 10 Final Capacity 15 | 8 15 15 15 Final Carried 12 | 7 11 9 12 Class Distribution -------------------- 74% | Mutant 10% | Scavenger-Mutant 5% | Gunner 5% | Skirmisher 3% | Scavenger-Tank Dominant Class ---------------- Mutant | -10/Materials Mutant | -9/Materials Mutant | -8/Materials Resources | -11 -10 -9 -8 ----------- Run | Yrd Mat Mat Mat Matter Collected 781 | 264 78 144 295 Remotely . | . . . . Salvage Created 1617 | 99 127 425 966 Parts 85 | 2 7 27 49 Haulers Intercepted . | . . . . Recyclers Shooed 4 | . 4 . . Parts Field Recycled . | . . . . Retrieved Matter . | . . . . Parts Self-Destructed . | . . . . Prevented . | . . . . Parts Restored . | . . . . Kills | -11 -10 -9 -8 ------- Run | Yrd Mat Mat Mat Combat Hostiles Destroyed 33 | . 3 9 21 Guns 20 | . 3 9 8 Cannons 6 | . . . 6 AOE 6 | . . . 6 Classes Destroyed 10 | 1 1 4 4 Worker 5 | . . . 5 Builder 4 | . . 1 3 Recycler 4 | 1 . 1 2 Mechanic 1 | . . . 1 Watcher 2 | . . . 2 Swarmer 7 | . . 3 4 Grunt 18 | . 3 3 12 Brawler 1 | . . 1 . Sentry 6 | . . 2 4 Hunter 1 | . . . 1 Best Kill Streak 14 | 1 2 4 14 Combat Bots Only 7 | . 2 4 7 Max Kills in Single Turn 4 | 1 1 1 4 Gunslinging . | . . . . Exploded 3 | . . . 3 Melee . | . . . . Uniques/NPCs Destroyed . | . . . . Combat | -11 -10 -9 -8 -------- Run | Yrd Mat Mat Mat Hostile Shots Fired 290 | . 21 95 174 Missed 87 | . 9 31 47 Hits 203 | . 12 64 127 Melee 3 | . . 3 . Projectile 200 | . 12 61 127 Critical Strikes 8 | . . . 8 Damage Taken 2967 | . 130 754 2083 Core 700 | . 22 121 557 Absorbed by Shields . | . . . . Core Remaining (%) 86 | 100 91 69 . Volleys Fired 166 | 2 23 39 102 Largest 3 | 2 2 2 3 Hottest 177 | 40 40 115 177 Shots Fired 295 | 4 33 76 182 Gun 242 | 4 29 76 133 Cannon 45 | . 4 . 41 Launcher 8 | . . . 8 Special . | . . . . Kinetic 149 | 4 33 53 59 Thermal 138 | . . 23 115 Explosive 8 | . . . 8 Electromagnetic . | . . . . Robot Hit Streak 13 | 1 5 10 13 Robot Miss Streak 8 | 1 2 8 3 Penetration Max . | . . . . Secondary Targets 2 | . . 1 1 Max Gunslinging Chain 1 | . . 1 1 Shots Hit Robots 177 | 2 17 46 112 Core Hits 99 | 2 7 24 66 Critical Kills . | . . . . Critical Parts Destroyed . | . . . . Critical Strikes 8 | . . . 8 Burn 7 | . . . 7 Blast 1 | . . . 1 Melee Attacks . | . . . . Impact . | . . . . Slashing . | . . . . Piercing . | . . . . Sneak Attacks . | . . . . Combat Hostiles . | . . . . Follow-up Attacks . | . . . . Damage Inflicted 3303 | 15 154 449 2685 Guns 1750 | 15 136 444 1155 Cannons 609 | . . . 609 Explosions 921 | . . . 921 Melee . | . . . . Ramming 23 | . 18 5 . Kinetic 1148 | 15 136 276 721 Thermal 1211 | . . 168 1043 Explosive 921 | . . . 921 Electromagnetic . | . . . . Impact . | . . . . Slashing . | . . . . Piercing . | . . . . Highest Corruption . | . . . . Average Corruption . | . . . . Corruption Purged . | . . . . Corruption Blocked . | . . . . Overload Shots . | . . . . Overflow Damage 27 | . . . 27 Projectiles . | . . . . Explosions 27 | . . . 27 Melee . | . . . . Knockbacks 10 | . . . 10 Impact . | . . . . Kinetic 10 | . . . 10 Secondary . | . . . . Self-Inflicted Damage 127 | . . . 127 Shots 4 | . . . 4 Rammed . | . . . . Targets Rammed 8 | . 6 2 . Kicked 8 | . 6 2 . Crushed . | . . . . Highest Temperature 311 | . 6 135 311 Average Temperature 94 | . 6 42 110 Received Heat Transfer 1332 | . 72 180 1080 Siege Activations . | . . . . Martial Activations . | . . . . Shielding Activations . | . . . . Robots Disrupted . | . . . . Combat Hostiles . | . . . . Robots Corrupted . | . . . . Combat Hostiles . | . . . . Parts Fried . | . . . . Impact Corruptions . | . . . . Robots Melted 1 | . . . 1 Combat Hostiles 1 | . . . 1 Parts Melted 13 | . . . 13 Heat Transferred 3626 | . . 481 3145 Parts Sabotaged . | . . . . Parts Stolen . | . . . . Parts Stripped . | . . . . Power Chain Reactions . | . . . . Alert | -11 -10 -9 -8 ------- Run | Yrd Mat Mat Mat Maximum Alert Level 1 | . . . 1 Low Security (%) 99 | 100 100 100 98 Level 1 . | . . . 1 Level 2 . | . . . . Level 3 . | . . . . Level 4 . | . . . . Level 5 . | . . . . High Security . | . . . . Max Security . | . . . . Peak Influence 219 | 5 37 100 219 Initial 4 | . 3 . 4 Average 23 | . 6 32 32 Influence Increases 1047 | 5 105 285 652 Destroy 0b10 Robot/C 660 | . 60 180 420 Destroy 0b10 Robot/NC 80 | 5 . 10 65 Destroy Leader 134 | . . 50 84 Successful Hack 15 | . 15 . . Disable Machine 45 | . 15 . 30 Destroy Structure 53 | . . . 53 Lose Combat Pursuer 60 | . 15 45 . Influence Decreases 828 | . 110 273 445 Entered New Map 10 | . 2 . 8 Time Decay 562 | . 108 167 287 Lost Part 210 | . . 60 150 Purge Threat 46 | . . 46 . Squads Dispatched 4 | . . 1 3 Investigation . | . . . . Extermination . | . . . . Reinforcement 4 | . . 1 3 Assault . | . . . . Garrison . | . . . . Intercept . | . . . . Searches Triggered . | . . . . Construction Impeded 1 | . . . 1 Haulers Reinforced . | . . . . Active Scanning Responses . | . . . . Cargo Convoy Interrupts . | . . . . Stealth | -11 -10 -9 -8 --------- Run | Yrd Mat Mat Mat Distress Signals 7 | . . 3 4 Communications Jammed . | . . . . Distress Signals . | . . . . Times Spotted 79 | . 6 26 47 Peak Tracking Total 7 | . 2 7 7 Tactical Retreats 10 | . 1 2 7 ECM-based Alert Blocks 13 | . . . 13 Traps | -11 -10 -9 -8 ------- Run | Yrd Mat Mat Mat Traps Triggered 3 | . 3 . . Indirectly . | . . . . Trap Hack Attempts . | . . . . Triggered . | . . . . Disarmed . | . . . . Reprogrammed . | . . . . Reused . | . . . . Traps Extracted . | . . . . Installed . | . . . . Triggered . | . . . . Machines | -11 -10 -9 -8 ---------- Run | Yrd Mat Mat Mat Machines Disabled 3 | . 1 . 2 Max in Single Turn 1 | . 1 . 1 Machines Repaired . | . . . . Machines Dismantled . | . . . . Machines Sabotaged . | . . . . Overloaded Fab Kills . | . . . . Hacking | -11 -10 -9 -8 --------- Run | Yrd Mat Mat Mat Machines Accessed 3 | . 1 2 . Terminals 3 | . 1 2 . Fabricators . | . . . . Repair Stations . | . . . . Recycling Units . | . . . . Scanalyzers . | . . . . Garrison Access . | . . . . Total Hacks 10 | . 4 6 . Successful 6 | . 3 3 . Failed 4 | . 1 3 . Catastrophic . | . . . . Database Lockouts . | . . . . Manual 10 | . 5 5 . Terminals 10 | . 4 6 . Fabricators . | . . . . Repair Stations . | . . . . Recycling Units . | . . . . Scanalyzers . | . . . . Garrison Access . | . . . . Terminal Hacks 3 | . 1 2 . Unreport Threat 1 | . . 1 . Zone Layout 2 | . 1 1 . Fabricator Hacks . | . . . . Repair Station Hacks . | . . . . Recycling Unit Hacks . | . . . . Scanalyzer . | . . . . Garrison Access Hacks . | . . . . Unauthorized Hacks 3 | . 2 1 . Terminals 3 | . 2 1 . Botnet 1 | . 1 . . Skim 2 | . 1 1 . Fabricators . | . . . . Repair Stations . | . . . . Recycling Units . | . . . . Scanalyzers . | . . . . Garrison Access . | . . . . Data Cores Recovered . | . . . . Used . | . . . . Hacking Detections 3 | . 1 2 . Full Trace Events . | . . . . Feedback Events . | . . . . Feedback Blocked . | . . . . Robot Schematics Acquired . | . . . . Robots Built . | . . . . Authchips . | . . . . Time . | . . . . Total Robot Build Rating . | . . . . Part Schematics Acquired . | . . . . Parts Built . | . . . . Authchips . | . . . . Time . | . . . . Total Part Build Rating . | . . . . Part Studies Acquired . | . . . . Parts Repaired . | . . . . Time . | . . . . Parts Recycled . | . . . . Recycled Matter . | . . . . Retrieved Matter . | . . . . Retrieved Components . | . . . . Parts Scanalyzed . | . . . . Part Schematics Acquired . | . . . . Parts Damaged . | . . . . Bothacking | -11 -10 -9 -8 ------------ Run | Yrd Mat Mat Mat Used RIF Installer . | . . . . Robots Hacked . | . . . . Non-combat . | . . . . Combat . | . . . . Robot Hacks Applied . | . . . . Relay Couplers Released . | . . . . Fabnet Peak Effective % . | . . . . Robots Rewired . | . . . . Allies Hacked . | . . . . Hacks Repelled . | . . . . Allies | -11 -10 -9 -8 -------- Run | Yrd Mat Mat Mat Total Allies . | . . . . Largest Group . | . . . . Highest-Rated Group . | . . . . Highest-Rated Ally . | . . . . Total Orders . | . . . . Ally Attacks . | . . . . Total Damage . | . . . . Kills . | . . . . Allies Corrupted . | . . . . Allies Melted . | . . . . Intel | -11 -10 -9 -8 ------- Run | Yrd Mat Mat Mat Active Infowar (turns) 910 | . . 305 605 Sensors 540 | . . 305 235 ECM 605 | . . . 605 Robot Analysis Total . | . . . . Derelict Logs Recovered . | . . . . Drone Launches . | . . . . Drone Recoveries . | . . . . Exploration | -11 -10 -9 -8 ------------- Run | Yrd Mat Mat Mat Turns Passed 2377 | 99 683 496 1099 Spaces Moved 1107 | 65 343 171 528 Core 18 | 18 . . . Treads 277 | . . . 277 Legs 601 | 47 343 171 40 Wheels 211 | . . . 211 Hover . | . . . . Flight . | . . . . Fastest Speed 50 | 50 120 190 95 Average Speed 156 | 121 170 191 141 Slowest Speed 330 | 200 190 260 330 Overloaded Moves . | . . . . Propulsion Burnouts . | . . . . Robots Hopped . | . . . . Potential Cave-ins . | . . . . Cave-ins Triggered . | . . . . Exploration Rate (%) 25 | 3 49 20 30 Regions Visited 3 Branch Regions . Pre-discovered Areas . | . . . . Known Exits Taken 1 | . . 1 . Unknown Exits Taken 2 | 1 1 . . Scrap Searched . | . . . . Spaces Dug . | . . . . Terrain Destroyed 43 | . . . 43 Melee . | . . . . Projectile 1 | . . . 1 AOE 42 | . . . 42 Terrain Rammed . | . . . . Walls Destroyed . | . . . . Machines Disabled . | . . . . Actions | -11 -10 -9 -8 --------- Run | Yrd Mat Mat Mat Total 1464 | 79 408 271 706 Wait 106 | . 22 46 38 Move 1104 | 64 342 170 528 Hop . | . . . . Pick Up 28 | 7 5 3 13 Fast Attach 24 | 6 6 2 10 Attach 15 | . . 5 10 Detach . | . . . . Swap 7 | . 2 2 3 Drop 6 | . 2 2 2 Fire 166 | 2 23 39 102 Melee . | . . . . Ram . | . . . . Kick 8 | . 6 2 . Crush . | . . . . Escape Stasis . | . . . . Rewire . | . . . . Trap . | . . . . Miscellaneous . | . . . . Route ------- -11/Scrapyard -10/Materials -9/Materials -8/Materials History --------- Turn | Location | Event 13 | -11/Scrapyard | Discovered new exit (range 16) 100 | -11/Scrapyard | Entered Materials 309 | -10/Materials | Build established: Mutant 328 | -10/Materials | Discovered new exit (range 16) 783 | -10/Materials | Entered another Materials area 783 | -9/Materials | Evolved 2 slots: Utility x2 1137 | -9/Materials | Lost 3 parts (1u2w) 1258 | -9/Materials | Discovered new exit (range 9) 1277 | -9/Materials | Identified exit to Materials 1279 | -9/Materials | Entered another Materials area 1279 | -8/Materials | Evolved 2 slots: Utility x1, Weapon x1 1421 | -8/Materials | Lost 3 parts (1n1u1w) 2333 | -8/Materials | Core integrity fell below 50% 2357 | -8/Materials | Destroyed 7 combat bots 2372 | -8/Materials | Core integrity fell below 20% 2378 | -8/Materials | Destroyed by G-47 Trooper with Particle Gun Last Messages --------------- 02343_ U-05 Engineer lays Concrete. 02357_ Beam Rifle destroyed. 02358_ U-05 Engineer lays Concrete. 02359_ Wheel destroyed. 02360_ U-05 Engineer lays Concrete. 02365_ Lgt. Nuclear Core destroyed. 02365_ U-05 Engineer lays Concrete. 02367_ Lgt. Assault Rifle destroyed. 02368_ U-05 Engineer lays Concrete. 02369_ Destroyed Lgt. Nuclear Core. 02369_ Destroyed Welding Torch. 02369_ U-05 Engineer destroyed. 02371_ G-47 Trooper destroyed. 02371_ U-05 Engineer destroyed. 02371_ K-01 Serf destroyed. 02373_ R-06 Scavenger destroyed. 02375_ R-06 Scavenger inserts Flight Unit into recycling unit. 02378_ R-06 Scavenger inserts Terrain Scanner into recycling unit. Map ----- +----------------------------------------------------+ | ?????????????????????????????????????????????????? | | ?????????????????????????????????????????????????? | | ?????????????????????????????????????????????????? | | ?????????????????????????????????????????????????? | | ?????????????????????????????????????????????????? | | ???????????????????????????????????? ???????????? | | ???????????????????????????????????? ???????????? | | ???????????????????????????????????? ???????????? | | ???????????????????? ???????????? ???????????? | | #??????????????????# ???????????? ???????????? | | #??????????????????# ???????????? ???????????? | | +??????????????????# #??????????? ???????????? | | #??????????????????# ??????????? #??????????? | | #??????????????????# ??????????? #??????????? | | #??????????????????# ??????????? #??????????? | | #??????????????????# ########????# #??????????? | | #?????????????###### # """ #????# #??????????? | | #?????????????? ! # # "R" #????# #??????????? | | #?????????????? r " " #????# #??????????? | | #????????????/?"Y" ?????# #??????????? | | +????????????? """ * ??????# #?########## | | #??????????????? = ???????# #?# | | #????????????????# % ######??# #?# | | ##???????######### ! #??# ### | | #???????# g #??# # | | ######### @ %* #??# + | | + ! %% #??# # = | | ## ######o =% #??# # | | ## #????# # % ! #??# # | | ###+###### #= !/ #??# ########## | | #?? # #! # ! #??# #????????? | | # # % # !#??# #????????? | | + ###########= # ######+#??# #????????? | | # #??# ###????# #??# #????????? | | #??#######??# #??????# #??# ########## | | ##??????????# #??????# #??# # | | ############ #??????# #??# # """ | | ########+#### # "Y" | | =!==%+!= # # | | [ ##############""" # % + """ """ | | ############"##????????????#""" #% # """ """ | | ###????????? % ?????????????#""" + # """ """ | | ??????????? """ ?????????????# # # | | ??????????# """ ?????????????# # ########## | | ??????????# """ ?????????????######## ## !! | | ??????????# ????????????? # ## ! | | ??????????#? ! ????????????# """" # ## | | ????????????? " ????????????# """" # ## | | ???????????????"R????????????# """" + ## """ """ | | ???????????????"""???????????# # ## "" """ | +----------------------------------------------------+ Best States ------------- Heat Dissipation 41 Energy Generation 14 Energy Capacity 250 Matter Stores 300 Matter Capacity 300 Sight Range 16 Robot Scan Range 15 Terrain Scan Density 85 ECM Strength 1 Armor Coverage 150 Evasion (%) 55 Recoil Reduction 2 Item Schematics ----------------- None Robot Schematics ------------------ None Fabricated ------------ Nothing Repaired ---------- Nothing Studied --------- None Alien Tech Used ----------------- None Achievements -------------- None Challenges ------------ None Game ------ Seed AblativeAssaultPlateshifter Manual? 0 Play Time 00:24:57 Cumulative 28.2 hours Start 2026.08.31 @ 09:00:15 End 2026.08.31 @ 09:49:06 Sessions 1 Manual Loads 0 Difficulty Rogue Special Mode None Game No. 43 Rogue 38 Adventurer 1 Explorer 4 Win Type - Total 0 Types 0/0/0/0/0/0/0/0/0/0 Lore% 10 Gallery% 20 Achievement% 18 Wizard Run 0 Options --------- Layout 1 ASCII 0 Keyboard 0 Movement Arrows Keybinds 0 Fullscreen 1 Font 24/Smallcaps Map View 50x35 Zoom Use 0% Tactical HUD 1 Map Filters NONE Filters NONE Steam 1 RUN: 94cf4b3b-9dbb-4886-a6c9-2ca078154c2a